[Event "Titled Tuesday Blitz March 08 Late 2022"]
[White "Vusatiuk, Vladimir"]
[Black "Yeshchenko, Uliana"]
[WhiteFideId "14118610"]
[BlackFideId "14187272"]
[WhiteElo "2157"]
[BlackElo "1881"]
[Result "1-0"]
[Round "02"]
[TimeControl "180+1"]
[Date "2022.03.09"]
[WhiteClock "0:00:06"]
[BlackClock "0:00:07"]

1. d4 {[%clk 0:02:54]}  d5 {[%clk 0:02:59]} 2. c4 {[%clk 0:02:46]}  e6 {[%clk 0:02:59]} 3. Nc3 {[%clk 0:02:46]}  a6 {[%clk 0:02:59]} 4. cxd5 {[%clk 0:02:42]}  exd5 {[%clk 0:03:00]} 5. Nf3 {[%clk 0:02:39]}  Nf6 {[%clk 0:02:59]} 6. Bg5 {[%clk 0:02:39]}  c6 {[%clk 0:03:00]} 7. e3 {[%clk 0:02:37]}  Bd6 {[%clk 0:02:59]} 8. Bd3 {[%clk 0:02:37]}  Be6 {[%clk 0:02:58]} 9. O-O {[%clk 0:02:35]}  Nbd7 {[%clk 0:02:58]} 10. h3 {[%clk 0:02:33]}  h6 {[%clk 0:02:58]} 11. Bf4 {[%clk 0:02:30]}  Qc7 {[%clk 0:02:43]} 12. Bxd6 {[%clk 0:02:26]}  Qxd6 {[%clk 0:02:44]} 13. Rb1 {[%clk 0:02:17]}  O-O {[%clk 0:02:39]} 14. b4 {[%clk 0:02:15]}  Rac8 {[%clk 0:02:32]} 15. a4 {[%clk 0:02:13]}  Rfd8 {[%clk 0:02:30]} 16. Qb3 {[%clk 0:02:08]}  Qe7 {[%clk 0:02:23]} 17. Rfc1 {[%clk 0:02:00]}  Ne4 {[%clk 0:02:06]} 18. Qc2 {[%clk 0:01:58]}  Bf5 {[%clk 0:01:51]} 19. Bxe4 {[%clk 0:01:40]}  Bxe4 {[%clk 0:01:44]} 20. Nxe4 {[%clk 0:01:39]}  dxe4 {[%clk 0:01:45]} 21. Nd2 {[%clk 0:01:38]}  Nf6 {[%clk 0:01:44]} 22. b5 {[%clk 0:01:34]}  axb5 {[%clk 0:01:43]} 23. axb5 {[%clk 0:01:33]}  Rd6 {[%clk 0:01:35]} 24. Qc5 {[%clk 0:01:07]}  Qe6 {[%clk 0:01:29]} 25. Qa7 {[%clk 0:01:00]}  cxb5 {[%clk 0:01:21]} 26. Qxb7 {[%clk 0:00:56]}  Rxc1+ {[%clk 0:01:14]} 27. Rxc1 {[%clk 0:00:57]}  Rb6 {[%clk 0:01:09]} 28. Qa8+ {[%clk 0:00:47]}  Kh7 {[%clk 0:01:09]} 29. Rb1 {[%clk 0:00:35]}  b4 {[%clk 0:01:01]} 30. Nb3 {[%clk 0:00:35]}  Qc4 {[%clk 0:00:47]} 31. Qa2 {[%clk 0:00:31]}  Nd5 {[%clk 0:00:46]} 32. Qb2 {[%clk 0:00:27]}  Qc3 {[%clk 0:00:44]} 33. Nc5 {[%clk 0:00:24]}  Qxb2 {[%clk 0:00:26]} 34. Rxb2 {[%clk 0:00:25]}  Nc3 {[%clk 0:00:26]} 35. f3 {[%clk 0:00:19]}  exf3 {[%clk 0:00:24]} 36. gxf3 {[%clk 0:00:20]}  f5 {[%clk 0:00:23]} 37. Rb3 {[%clk 0:00:08]}  g5 {[%clk 0:00:19]} 38. Nd3 {[%clk 0:00:08]}  Nd1 {[%clk 0:00:17]} 39. e4 {[%clk 0:00:06]}  fxe4 {[%clk 0:00:17]} 40. fxe4 {[%clk 0:00:07]}  Ne3 {[%clk 0:00:12]} 41. Rxb4 {[%clk 0:00:06]}  Rxb4 {[%clk 0:00:12]} 42. Nxb4 {[%clk 0:00:07]}  Kg7 {[%clk 0:00:12]} 43. Kf2 {[%clk 0:00:06]}  Nd1+ {[%clk 0:00:11]} 44. Kf3 {[%clk 0:00:04]}  Nc3 {[%clk 0:00:11]} 45. d5 {[%clk 0:00:03]}  Kf6 {[%clk 0:00:12]} 46. Nd3 {[%clk 0:00:04]}  Ke7 {[%clk 0:00:09]} 47. Ke3 {[%clk 0:00:04]}  Kd6 {[%clk 0:00:09]} 48. Kd4 {[%clk 0:00:05]}  Ne2+ {[%clk 0:00:09]} 49. Ke3 {[%clk 0:00:04]}  Ng1 {[%clk 0:00:09]} 50. Kd4 {[%clk 0:00:05]}  Nxh3 {[%clk 0:00:09]} 51. e5+ {[%clk 0:00:06]}  Kd7 {[%clk 0:00:10]} 52. e6+ {[%clk 0:00:04]}  Kd6 {[%clk 0:00:09]} 53. Nc5 {[%clk 0:00:05]}  Nf4 {[%clk 0:00:09]} 54. Ne4+ {[%clk 0:00:05]}  Ke7 {[%clk 0:00:09]} 55. Ke5 {[%clk 0:00:06]}  Nd3+ {[%clk 0:00:09]} 56. Kf5 {[%clk 0:00:04]}  Nb4 {[%clk 0:00:07]} 57. d6+ {[%clk 0:00:05]}  Ke8 {[%clk 0:00:07]} 58. Nf6+ {[%clk 0:00:05]}  Kd8 {[%clk 0:00:07]} 59. e7+ {[%clk 0:00:06]} 1-0


[Site "https://www.chess.com"]

[Event "Titled Tuesday Blitz March 08 Late 2022"]
[White "Wagner, Dennis"]
[Black "Avazkhonov, Alikhon"]
[WhiteFideId "24650684"]
[BlackFideId "14208504"]
[WhiteElo "2702"]
[BlackElo "2387"]
[Result "1-0"]
[Round "02"]
[TimeControl "180+1"]
[Date "2022.03.09"]
[WhiteClock "0:01:22"]
[BlackClock "0:00:02"]

1. d4 {[%clk 0:02:59]}  Nf6 {[%clk 0:02:45]} 2. Nf3 {[%clk 0:02:59]}  g6 {[%clk 0:02:45]} 3. g3 {[%clk 0:02:59]}  Bg7 {[%clk 0:02:46]} 4. Bg2 {[%clk 0:03:00]}  O-O {[%clk 0:02:46]} 5. O-O {[%clk 0:03:00]}  d6 {[%clk 0:02:47]} 6. b3 {[%clk 0:03:00]}  Nbd7 {[%clk 0:02:47]} 7. Bb2 {[%clk 0:03:00]}  e5 {[%clk 0:02:42]} 8. dxe5 {[%clk 0:03:00]}  Ng4 {[%clk 0:02:42]} 9. Qd2 {[%clk 0:02:58]}  Re8 {[%clk 0:02:38]} 10. c4 {[%clk 0:02:57]}  Ngxe5 {[%clk 0:02:37]} 11. Nc3 {[%clk 0:02:54]}  f5 {[%clk 0:02:31]} 12. Rad1 {[%clk 0:02:50]}  Nxf3+ {[%clk 0:02:11]} 13. Bxf3 {[%clk 0:02:47]}  Ne5 {[%clk 0:02:10]} 14. Bg2 {[%clk 0:02:45]}  Kh8 {[%clk 0:01:53]} 15. c5 {[%clk 0:02:43]}  Nf7 {[%clk 0:01:24]} 16. Nd5 {[%clk 0:02:42]}  c6 {[%clk 0:00:29]} 17. Bxg7+ {[%clk 0:02:39]}  Kxg7 {[%clk 0:00:29]} 18. Qc3+ {[%clk 0:02:40]}  Ne5 {[%clk 0:00:26]} 19. Ne3 {[%clk 0:02:10]}  Kf7 {[%clk 0:00:15]} 20. Rxd6 {[%clk 0:02:06]}  Qe7 {[%clk 0:00:15]} 21. Rfd1 {[%clk 0:02:03]}  Bd7 {[%clk 0:00:07]} 22. Nc4 {[%clk 0:02:02]}  Bc8 {[%clk 0:00:02]} 23. e4 {[%clk 0:01:44]}  Nxc4 {[%clk 0:00:02]} 24. Qxc4+ {[%clk 0:01:45]}  Be6 {[%clk 0:00:02]} 25. Qd4 {[%clk 0:01:45]}  fxe4 {[%clk 0:00:01]} 26. Bxe4 {[%clk 0:01:43]}  Qf6 {[%clk 0:00:02]} 27. Qxf6+ {[%clk 0:01:34]}  Kxf6 {[%clk 0:00:03]} 28. f4 {[%clk 0:01:34]}  Ke7 {[%clk 0:00:03]} 29. Kf2 {[%clk 0:01:33]}  Rad8 {[%clk 0:00:03]} 30. Ke3 {[%clk 0:01:31]}  Rxd6 {[%clk 0:00:03]} 31. Rxd6 {[%clk 0:01:31]}  Rd8 {[%clk 0:00:04]} 32. Rxd8 {[%clk 0:01:31]}  Kxd8 {[%clk 0:00:05]} 33. Kd4 {[%clk 0:01:31]}  Ke7 {[%clk 0:00:05]} 34. Ke5 {[%clk 0:01:32]}  Bd7 {[%clk 0:00:05]} 35. b4 {[%clk 0:01:31]}  a6 {[%clk 0:00:03]} 36. a3 {[%clk 0:01:31]}  Be6 {[%clk 0:00:02]} 37. f5 {[%clk 0:01:24]}  Bf7 {[%clk 0:00:03]} 38. f6+ {[%clk 0:01:24]}  Kd7 {[%clk 0:00:03]} 39. h4 {[%clk 0:01:24]}  Be6 {[%clk 0:00:01]} 40. Bf3 {[%clk 0:01:23]}  Bf5 {[%clk 0:00:01]} 41. g4 {[%clk 0:01:23]}  Be6 {[%clk 0:00:01]} 42. g5 {[%clk 0:01:22]}  Bf7 {[%clk 0:00:02]} 43. Bg4+ {[%clk 0:01:22]}  Kc7 {[%clk 0:00:02]} 44. Be6 {[%clk 0:01:22]} 1-0


[Site "https://www.chess.com"]

[Event "Titled Tuesday Blitz March 08 Late 2022"]
[White "Wieczorek, Oskar"]
[Black "Qashashvili, Alexandre"]
[WhiteFideId "1133950"]
[BlackFideId "13600842"]
[WhiteElo "2319"]
[BlackElo "2316"]
[Result "1-0"]
[Round "02"]
[TimeControl "180+1"]
[Date "2022.03.09"]
[WhiteClock "0:00:23"]
[BlackClock "0:00:21"]

1. e4 {[%clk 0:02:32]}  c6 {[%clk 0:02:48]} 2. d4 {[%clk 0:02:32]}  d5 {[%clk 0:02:48]} 3. Nd2 {[%clk 0:02:33]}  dxe4 {[%clk 0:02:48]} 4. Nxe4 {[%clk 0:02:34]}  Nd7 {[%clk 0:02:48]} 5. Ng5 {[%clk 0:02:34]}  Ngf6 {[%clk 0:02:48]} 6. Bd3 {[%clk 0:02:34]}  e6 {[%clk 0:02:48]} 7. N1f3 {[%clk 0:02:34]}  Bd6 {[%clk 0:02:48]} 8. Qe2 {[%clk 0:02:34]}  Nb6 {[%clk 0:02:45]} 9. Ne5 {[%clk 0:02:33]}  Bxe5 {[%clk 0:02:44]} 10. dxe5 {[%clk 0:02:34]}  Nfd5 {[%clk 0:02:43]} 11. a3 {[%clk 0:02:33]}  h6 {[%clk 0:02:42]} 12. Ne4 {[%clk 0:02:34]}  O-O {[%clk 0:02:41]} 13. O-O {[%clk 0:02:33]}  f5 {[%clk 0:02:38]} 14. exf6 {[%clk 0:02:33]}  Nxf6 {[%clk 0:02:37]} 15. Bd2 {[%clk 0:02:31]}  Nbd5 {[%clk 0:02:34]} 16. Rad1 {[%clk 0:02:30]}  Qc7 {[%clk 0:02:32]} 17. g3 {[%clk 0:02:27]}  e5 {[%clk 0:02:30]} 18. c4 {[%clk 0:02:24]}  Nxe4 {[%clk 0:02:28]} 19. Qxe4 {[%clk 0:02:19]}  Bf5 {[%clk 0:02:20]} 20. Qe2 {[%clk 0:02:15]}  Bxd3 {[%clk 0:02:16]} 21. Qxd3 {[%clk 0:02:16]}  Nf6 {[%clk 0:02:13]} 22. Bb4 {[%clk 0:02:16]}  Rfd8 {[%clk 0:02:09]} 23. Bd6 {[%clk 0:02:17]}  Qf7 {[%clk 0:01:38]} 24. Qe2 {[%clk 0:02:11]}  e4 {[%clk 0:01:36]} 25. Be5 {[%clk 0:02:06]}  Rxd1 {[%clk 0:01:36]} 26. Rxd1 {[%clk 0:02:07]}  Re8 {[%clk 0:01:36]} 27. Bd4 {[%clk 0:02:05]}  b6 {[%clk 0:01:33]} 28. Be3 {[%clk 0:02:04]}  c5 {[%clk 0:01:32]} 29. Kg2 {[%clk 0:02:00]}  Qe6 {[%clk 0:01:23]} 30. a4 {[%clk 0:01:59]}  Ng4 {[%clk 0:01:22]} 31. Bf4 {[%clk 0:01:57]}  Qg6 {[%clk 0:01:10]} 32. Rd6 {[%clk 0:01:54]}  Nf6 {[%clk 0:01:06]} 33. Qd2 {[%clk 0:01:33]}  Qg4 {[%clk 0:00:57]} 34. Qd1 {[%clk 0:01:31]}  Qxd1 {[%clk 0:00:51]} 35. Rxd1 {[%clk 0:01:32]}  Re7 {[%clk 0:00:47]} 36. Rd8+ {[%clk 0:01:28]}  Re8 {[%clk 0:00:44]} 37. Rxe8+ {[%clk 0:01:17]}  Nxe8 {[%clk 0:00:45]} 38. Bb8 {[%clk 0:01:17]}  a5 {[%clk 0:00:36]} 39. Kf1 {[%clk 0:01:08]}  Kf7 {[%clk 0:00:35]} 40. Ke2 {[%clk 0:01:08]}  Ke6 {[%clk 0:00:35]} 41. Ke3 {[%clk 0:01:08]}  Kf5 {[%clk 0:00:35]} 42. h3 {[%clk 0:00:53]}  h5 {[%clk 0:00:35]} 43. b3 {[%clk 0:00:53]}  Nf6 {[%clk 0:00:32]} 44. Bc7 {[%clk 0:00:53]}  Nd7 {[%clk 0:00:31]} 45. g4+ {[%clk 0:00:26]}  hxg4 {[%clk 0:00:31]} 46. hxg4+ {[%clk 0:00:27]}  Kxg4 {[%clk 0:00:31]} 47. Kxe4 {[%clk 0:00:28]}  g5 {[%clk 0:00:21]} 48. Bd8 {[%clk 0:00:23]}  Kh5 {[%clk 0:00:13]} 49. Kf5 {[%clk 0:00:21]}  g4 {[%clk 0:00:13]} 50. Be7 {[%clk 0:00:17]}  Nb8 {[%clk 0:00:11]} 51. Bd8 {[%clk 0:00:16]}  Nc6 {[%clk 0:00:11]} 52. Bxb6 {[%clk 0:00:16]}  Nd4+ {[%clk 0:00:12]} 53. Ke5 {[%clk 0:00:15]}  Nxb3 {[%clk 0:00:12]} 54. Kd5 {[%clk 0:00:16]}  Kh4 {[%clk 0:00:11]} 55. Bxc5 {[%clk 0:00:11]}  Nxc5 {[%clk 0:00:11]} 56. Kxc5 {[%clk 0:00:12]}  Kh3 {[%clk 0:00:11]} 57. Kb6 {[%clk 0:00:11]}  Kg2 {[%clk 0:00:12]} 58. c5 {[%clk 0:00:12]}  Kxf2 {[%clk 0:00:12]} 59. c6 {[%clk 0:00:13]}  g3 {[%clk 0:00:13]} 60. c7 {[%clk 0:00:14]}  g2 {[%clk 0:00:14]} 61. c8=Q {[%clk 0:00:14]}  g1=Q {[%clk 0:00:15]} 62. Qc5+ {[%clk 0:00:15]}  Kg2 {[%clk 0:00:15]} 63. Qxg1+ {[%clk 0:00:16]}  Kxg1 {[%clk 0:00:16]} 64. Kxa5 {[%clk 0:00:17]}  Kf2 {[%clk 0:00:16]} 65. Kb6 {[%clk 0:00:18]}  Ke3 {[%clk 0:00:17]} 66. a5 {[%clk 0:00:19]}  Kd4 {[%clk 0:00:18]} 67. a6 {[%clk 0:00:19]}  Kc4 {[%clk 0:00:19]} 68. Kb7 {[%clk 0:00:20]}  Kd5 {[%clk 0:00:20]} 69. a7 {[%clk 0:00:21]}  Kc4 {[%clk 0:00:20]} 70. a8=Q {[%clk 0:00:22]}  Kd5 {[%clk 0:00:21]} 71. Qc8 {[%clk 0:00:23]}  Kd6 {[%clk 0:00:21]} 72. Qc6+ {[%clk 0:00:23]} 1-0


[Site "https://www.chess.com"]

[Event "Titled Tuesday Blitz March 08 Late 2022"]
[White "orkinyo12345"]
[Black "Maksimovic, Bojan"]
[BlackFideId "14408120"]
[WhiteElo "2499"]
[BlackElo "2720"]
[Result "1-0"]
[Round "02"]
[TimeControl "180+1"]
[Date "2022.03.09"]
[WhiteClock "0:00:03"]
[BlackClock "0:00:01"]

1. c4 {[%clk 0:02:59]}  g6 {[%clk 0:02:58]} 2. g3 {[%clk 0:02:57]}  Bg7 {[%clk 0:02:58]} 3. Bg2 {[%clk 0:02:56]}  e5 {[%clk 0:02:57]} 4. Nf3 {[%clk 0:02:53]}  d6 {[%clk 0:02:57]} 5. d4 {[%clk 0:02:53]}  e4 {[%clk 0:02:50]} 6. Ng5 {[%clk 0:02:53]}  f5 {[%clk 0:02:50]} 7. h4 {[%clk 0:02:53]}  Nf6 {[%clk 0:02:45]} 8. Nc3 {[%clk 0:02:49]}  h6 {[%clk 0:02:43]} 9. Nh3 {[%clk 0:02:49]}  Be6 {[%clk 0:02:43]} 10. Nf4 {[%clk 0:02:36]}  Bf7 {[%clk 0:02:43]} 11. f3 {[%clk 0:02:36]}  exf3 {[%clk 0:02:40]} 12. Bxf3 {[%clk 0:02:26]}  c6 {[%clk 0:02:40]} 13. d5 {[%clk 0:02:05]}  O-O {[%clk 0:02:25]} 14. O-O {[%clk 0:01:54]}  cxd5 {[%clk 0:02:07]} 15. Ncxd5 {[%clk 0:01:47]}  Nc6 {[%clk 0:02:05]} 16. Nxf6+ {[%clk 0:01:28]}  Qxf6 {[%clk 0:02:05]} 17. Nd5 {[%clk 0:01:23]}  Qd8 {[%clk 0:02:01]} 18. Bf4 {[%clk 0:01:18]}  Ne5 {[%clk 0:02:01]} 19. Rc1 {[%clk 0:00:35]}  Rc8 {[%clk 0:01:48]} 20. b3 {[%clk 0:00:35]}  Nxf3+ {[%clk 0:01:19]} 21. Rxf3 {[%clk 0:00:36]}  g5 {[%clk 0:01:14]} 22. hxg5 {[%clk 0:00:34]}  hxg5 {[%clk 0:01:15]} 23. Be3 {[%clk 0:00:34]}  Bh5 {[%clk 0:01:15]} 24. Rf2 {[%clk 0:00:32]}  Be5 {[%clk 0:01:06]} 25. Qd2 {[%clk 0:00:31]}  Bxg3 {[%clk 0:01:02]} 26. Bxg5 {[%clk 0:00:31]}  Bxf2+ {[%clk 0:00:42]} 27. Kxf2 {[%clk 0:00:32]}  Qd7 {[%clk 0:00:34]} 28. Ne7+ {[%clk 0:00:25]}  Kf7 {[%clk 0:00:34]} 29. Rh1 {[%clk 0:00:24]}  Rh8 {[%clk 0:00:15]} 30. Nxc8 {[%clk 0:00:23]}  Qxc8 {[%clk 0:00:16]} 31. Qd5+ {[%clk 0:00:24]}  Qe6 {[%clk 0:00:17]} 32. Qxb7+ {[%clk 0:00:23]}  Kg6 {[%clk 0:00:17]} 33. Be3 {[%clk 0:00:23]}  Re8 {[%clk 0:00:14]} 34. Rg1+ {[%clk 0:00:23]}  Bg4 {[%clk 0:00:14]} 35. Qxa7 {[%clk 0:00:22]}  f4 {[%clk 0:00:12]} 36. Qd4 {[%clk 0:00:17]}  Qxe3+ {[%clk 0:00:11]} 37. Qxe3 {[%clk 0:00:17]}  fxe3+ {[%clk 0:00:11]} 38. Ke1 {[%clk 0:00:16]}  Kg5 {[%clk 0:00:08]} 39. Kd1 {[%clk 0:00:15]}  Ra8 {[%clk 0:00:05]} 40. a4 {[%clk 0:00:16]}  Kf4 {[%clk 0:00:05]} 41. Rf1+ {[%clk 0:00:14]}  Ke4 {[%clk 0:00:05]} 42. Rf6 {[%clk 0:00:15]}  d5 {[%clk 0:00:04]} 43. cxd5 {[%clk 0:00:14]}  Kxd5 {[%clk 0:00:04]} 44. Rf4 {[%clk 0:00:15]}  Rg8 {[%clk 0:00:03]} 45. a5 {[%clk 0:00:14]}  Ke5 {[%clk 0:00:04]} 46. Rb4 {[%clk 0:00:14]}  Be6 {[%clk 0:00:03]} 47. a6 {[%clk 0:00:14]}  Ra8 {[%clk 0:00:02]} 48. Rb5+ {[%clk 0:00:11]}  Kd4 {[%clk 0:00:03]} 49. Rb6 {[%clk 0:00:12]}  Bd5 {[%clk 0:00:03]} 50. Kc2 {[%clk 0:00:12]}  Kc5 {[%clk 0:00:03]} 51. Rh6 {[%clk 0:00:12]}  Kd4 {[%clk 0:00:04]} 52. b4 {[%clk 0:00:12]}  Rc8+ {[%clk 0:00:04]} 53. Kb2 {[%clk 0:00:12]}  Be4 {[%clk 0:00:03]} 54. b5 {[%clk 0:00:12]}  Rc2+ {[%clk 0:00:03]} 55. Kb3 {[%clk 0:00:12]}  Rxe2 {[%clk 0:00:03]} 56. b6 {[%clk 0:00:12]}  Re1 {[%clk 0:00:03]} 57. b7 {[%clk 0:00:08]}  Rb1+ {[%clk 0:00:03]} 58. Ka2 {[%clk 0:00:08]}  Rb5 {[%clk 0:00:03]} 59. Rd6+ {[%clk 0:00:04]}  Kc3 {[%clk 0:00:02]} 60. Re6 {[%clk 0:00:04]}  Kd3 {[%clk 0:00:02]} 61. Rxe4 {[%clk 0:00:02]}  Kxe4 {[%clk 0:00:02]} 62. a7 {[%clk 0:00:03]}  e2 {[%clk 0:00:01]} 63. a8=Q {[%clk 0:00:03]}  e1=Q {[%clk 0:00:01]} 64. b8=Q+ {[%clk 0:00:03]}  Kd4 {[%clk 0:00:01]} 65. Qd6+ {[%clk 0:00:03]}  Kc4 {[%clk 0:00:01]} 66. Qa4+ {[%clk 0:00:03]} 1-0


[Site "https://www.chess.com"]

[Event "Titled Tuesday Blitz March 08 Late 2022"]
[White "Andersson, Bjorn 1971"]
[Black "Desideri, Ricardo Maruchi"]
[WhiteFideId "1702114"]
[BlackFideId "2110440"]
[WhiteElo "2207"]
[BlackElo "1945"]
[Result "1-0"]
[Round "03"]
[TimeControl "180+1"]
[Date "2022.03.09"]
[WhiteClock "0:01:12"]
[BlackClock "0:00:30"]

1. e4 {[%clk 0:03:00]}  c5 {[%clk 0:02:59]} 2. Nf3 {[%clk 0:03:00]}  d6 {[%clk 0:02:59]} 3. d4 {[%clk 0:03:00]}  cxd4 {[%clk 0:02:59]} 4. Nxd4 {[%clk 0:03:01]}  Nf6 {[%clk 0:02:59]} 5. Nc3 {[%clk 0:03:01]}  a6 {[%clk 0:02:59]} 6. Be2 {[%clk 0:03:01]}  e6 {[%clk 0:02:59]} 7. O-O {[%clk 0:02:59]}  b5 {[%clk 0:02:59]} 8. a4 {[%clk 0:02:57]}  b4 {[%clk 0:02:58]} 9. Na2 {[%clk 0:02:57]}  d5 {[%clk 0:02:57]} 10. exd5 {[%clk 0:02:45]}  Nxd5 {[%clk 0:02:56]} 11. c4 {[%clk 0:02:45]}  Nf6 {[%clk 0:02:39]} 12. Bf3 {[%clk 0:02:36]}  Ra7 {[%clk 0:02:36]} 13. Nc6 {[%clk 0:02:35]}  Qxd1 {[%clk 0:02:33]} 14. Rxd1 {[%clk 0:02:32]}  Nxc6 {[%clk 0:02:26]} 15. Bxc6+ {[%clk 0:02:31]}  Bd7 {[%clk 0:02:26]} 16. Bxd7+ {[%clk 0:02:21]}  Rxd7 {[%clk 0:02:26]} 17. Rxd7 {[%clk 0:02:19]}  Nxd7 {[%clk 0:02:26]} 18. Bd2 {[%clk 0:02:18]}  a5 {[%clk 0:02:26]} 19. Be3 {[%clk 0:02:15]}  Nc5 {[%clk 0:02:18]} 20. Bxc5 {[%clk 0:02:11]}  Bxc5 {[%clk 0:02:19]} 21. Nc1 {[%clk 0:02:11]}  O-O {[%clk 0:02:13]} 22. Nb3 {[%clk 0:02:11]}  Bb6 {[%clk 0:02:11]} 23. c5 {[%clk 0:02:06]}  Bc7 {[%clk 0:02:09]} 24. Rd1 {[%clk 0:02:03]}  Rd8 {[%clk 0:02:05]} 25. Rxd8+ {[%clk 0:01:56]}  Bxd8 {[%clk 0:02:05]} 26. f4 {[%clk 0:01:53]}  Kf8 {[%clk 0:02:05]} 27. Kf2 {[%clk 0:01:52]}  Ke7 {[%clk 0:02:05]} 28. Ke3 {[%clk 0:01:51]}  Kd7 {[%clk 0:02:05]} 29. Kd4 {[%clk 0:01:51]}  Bf6+ {[%clk 0:02:03]} 30. Kc4 {[%clk 0:01:51]}  Kc6 {[%clk 0:01:54]} 31. Nxa5+ {[%clk 0:01:50]}  Kc7 {[%clk 0:01:49]} 32. b3 {[%clk 0:01:48]}  Bc3 {[%clk 0:01:44]} 33. Kb5 {[%clk 0:01:43]}  Bd2 {[%clk 0:01:34]} 34. g3 {[%clk 0:01:42]}  h5 {[%clk 0:01:30]} 35. Nc4 {[%clk 0:01:41]}  Bc3 {[%clk 0:01:21]} 36. a5 {[%clk 0:01:37]}  f6 {[%clk 0:01:16]} 37. a6 {[%clk 0:01:34]}  g5 {[%clk 0:00:54]} 38. fxg5 {[%clk 0:01:30]}  fxg5 {[%clk 0:00:55]} 39. Nd6 {[%clk 0:01:28]}  Kb8 {[%clk 0:00:48]} 40. Ne4 {[%clk 0:01:22]}  g4 {[%clk 0:00:32]} 41. Kb6 {[%clk 0:01:20]}  Bd4 {[%clk 0:00:31]} 42. a7+ {[%clk 0:01:12]}  Ka8 {[%clk 0:00:30]} 43. Ng5 {[%clk 0:01:12]} 1-0


[Site "https://www.chess.com"]

[Event "Titled Tuesday Blitz March 08 Late 2022"]
[White "Antonova, Nadezhda"]
[Black "Griffith, Kyron"]
[WhiteFideId "14700182"]
[BlackFideId "2046318"]
[WhiteElo "1751"]
[BlackElo "2232"]
[Result "1/2-1/2"]
[Round "03"]
[TimeControl "180+1"]
[Date "2022.03.09"]
[WhiteClock "0:00:36"]
[BlackClock "0:00:27"]

1. Nf3 {[%clk 0:02:59]}  d5 {[%clk 0:02:59]} 2. b3 {[%clk 0:02:58]}  c5 {[%clk 0:02:42]} 3. e3 {[%clk 0:02:57]}  a6 {[%clk 0:02:41]} 4. Bb2 {[%clk 0:02:57]}  Nc6 {[%clk 0:02:41]} 5. Be2 {[%clk 0:02:51]}  Nf6 {[%clk 0:02:37]} 6. O-O {[%clk 0:02:50]}  Bg4 {[%clk 0:02:29]} 7. c4 {[%clk 0:02:43]}  e6 {[%clk 0:02:25]} 8. d3 {[%clk 0:02:38]}  Be7 {[%clk 0:02:22]} 9. Nbd2 {[%clk 0:02:38]}  O-O {[%clk 0:02:19]} 10. h3 {[%clk 0:02:38]}  Bh5 {[%clk 0:02:18]} 11. Ne5 {[%clk 0:02:35]}  Bxe2 {[%clk 0:02:15]} 12. Qxe2 {[%clk 0:02:35]}  Rc8 {[%clk 0:02:08]} 13. Nxc6 {[%clk 0:02:31]}  Rxc6 {[%clk 0:02:09]} 14. Nf3 {[%clk 0:02:31]}  Nd7 {[%clk 0:02:06]} 15. cxd5 {[%clk 0:02:26]}  exd5 {[%clk 0:02:07]} 16. d4 {[%clk 0:02:25]}  c4 {[%clk 0:02:02]} 17. bxc4 {[%clk 0:02:24]}  Rxc4 {[%clk 0:02:02]} 18. Rac1 {[%clk 0:02:20]}  b5 {[%clk 0:02:02]} 19. Nd2 {[%clk 0:02:19]}  Rxc1 {[%clk 0:01:53]} 20. Rxc1 {[%clk 0:02:18]}  Qa5 {[%clk 0:01:46]} 21. a3 {[%clk 0:02:02]}  Bxa3 {[%clk 0:01:39]} 22. Ra1 {[%clk 0:02:00]}  b4 {[%clk 0:01:39]} 23. Nb3 {[%clk 0:01:56]}  Qa4 {[%clk 0:01:38]} 24. Nc5 {[%clk 0:01:30]}  Nxc5 {[%clk 0:01:37]} 25. dxc5 {[%clk 0:01:30]}  Qc6 {[%clk 0:00:54]} 26. Bxa3 {[%clk 0:01:26]}  bxa3 {[%clk 0:00:55]} 27. Rxa3 {[%clk 0:01:26]}  Qxc5 {[%clk 0:00:54]} 28. Qxa6 {[%clk 0:01:25]}  d4 {[%clk 0:00:50]} 29. exd4 {[%clk 0:01:24]}  Qxd4 {[%clk 0:00:51]} 30. Qd3 {[%clk 0:01:23]}  Qb4 {[%clk 0:00:49]} 31. Ra1 {[%clk 0:01:13]}  Re8 {[%clk 0:00:48]} 32. Rd1 {[%clk 0:01:07]}  g6 {[%clk 0:00:45]} 33. g3 {[%clk 0:01:02]}  Ra8 {[%clk 0:00:40]} 34. Qd2 {[%clk 0:01:00]}  Qe4 {[%clk 0:00:37]} 35. Qd5 {[%clk 0:00:59]}  Qa4 {[%clk 0:00:36]} 36. Qd4 {[%clk 0:00:58]}  Qc2 {[%clk 0:00:33]} 37. Qd2 {[%clk 0:00:56]}  Qxd2 {[%clk 0:00:29]} 38. Rxd2 {[%clk 0:00:56]}  g5 {[%clk 0:00:29]} 39. g4 {[%clk 0:00:53]}  Ra3 {[%clk 0:00:28]} 40. Kg2 {[%clk 0:00:53]}  Kg7 {[%clk 0:00:29]} 41. Rd5 {[%clk 0:00:51]}  Kg6 {[%clk 0:00:28]} 42. f3 {[%clk 0:00:47]}  Ra2+ {[%clk 0:00:28]} 43. Kg3 {[%clk 0:00:47]}  Ra4 {[%clk 0:00:29]} 44. Rd3 {[%clk 0:00:45]}  f6 {[%clk 0:00:28]} 45. h4 {[%clk 0:00:43]}  gxh4+ {[%clk 0:00:27]} 46. Kxh4 {[%clk 0:00:43]}  Rb4 {[%clk 0:00:25]} 47. Kg3 {[%clk 0:00:40]}  h5 {[%clk 0:00:25]} 48. gxh5+ {[%clk 0:00:39]}  Kxh5 {[%clk 0:00:25]} 49. Rd5+ {[%clk 0:00:39]}  Kg6 {[%clk 0:00:26]} 50. Rd3 {[%clk 0:00:36]}  Rc4 {[%clk 0:00:26]} 51. Re3 {[%clk 0:00:35]}  Rb4 {[%clk 0:00:26]} 52. Rd3 {[%clk 0:00:36]}  Rc4 {[%clk 0:00:27]} 53. Re3 {[%clk 0:00:36]}  Rb4 {[%clk 0:00:27]} 54. Rd3 {[%clk 0:00:36]} 1/2-1/2


[Site "https://www.chess.com"]

[Event "Titled Tuesday Blitz March 08 Late 2022"]
[White "Bashirli, Nail"]
[Black "Dobrov, Vladimir"]
[WhiteFideId "13406809"]
[BlackFideId "4136594"]
[WhiteElo "2333"]
[BlackElo "2614"]
[Result "0-1"]
[Round "03"]
[TimeControl "180+1"]
[Date "2022.03.08"]
[WhiteClock "0:00:02"]
[BlackClock "0:00:34"]

1. e4 {[%clk 0:02:54]}  c5 {[%clk 0:02:58]} 2. Nc3 {[%clk 0:02:54]}  Nc6 {[%clk 0:02:58]} 3. Bb5 {[%clk 0:02:53]}  Nd4 {[%clk 0:02:58]} 4. Nge2 {[%clk 0:02:54]}  g6 {[%clk 0:02:58]} 5. O-O {[%clk 0:02:53]}  Bg7 {[%clk 0:02:57]} 6. Nxd4 {[%clk 0:02:54]}  cxd4 {[%clk 0:02:57]} 7. Ne2 {[%clk 0:02:54]}  Nf6 {[%clk 0:02:57]} 8. d3 {[%clk 0:02:53]}  O-O {[%clk 0:02:56]} 9. h3 {[%clk 0:02:51]}  e5 {[%clk 0:02:26]} 10. f4 {[%clk 0:02:44]}  d5 {[%clk 0:02:21]} 11. fxe5 {[%clk 0:02:38]}  Nh5 {[%clk 0:02:00]} 12. exd5 {[%clk 0:01:43]}  Qxd5 {[%clk 0:01:55]} 13. Bc4 {[%clk 0:01:42]}  Qxe5 {[%clk 0:01:55]} 14. Nf4 {[%clk 0:01:43]}  Ng3 {[%clk 0:01:50]} 15. Re1 {[%clk 0:01:39]}  Qd6 {[%clk 0:01:47]} 16. Bd2 {[%clk 0:01:36]}  Nf5 {[%clk 0:01:43]} 17. Qf3 {[%clk 0:01:32]}  Bd7 {[%clk 0:01:28]} 18. a3 {[%clk 0:01:26]}  a5 {[%clk 0:01:23]} 19. Qd5 {[%clk 0:01:22]}  Qc7 {[%clk 0:01:23]} 20. Qf3 {[%clk 0:01:10]}  Rae8 {[%clk 0:01:17]} 21. Nd5 {[%clk 0:00:56]}  Qd8 {[%clk 0:01:13]} 22. Qf2 {[%clk 0:00:08]}  Bc6 {[%clk 0:01:07]} 23. Nf4 {[%clk 0:00:07]}  b5 {[%clk 0:01:00]} 24. Bb3 {[%clk 0:00:07]}  a4 {[%clk 0:01:00]} 25. Ba2 {[%clk 0:00:07]}  Re3 {[%clk 0:00:58]} 26. Re2 {[%clk 0:00:06]}  Bf6 {[%clk 0:00:39]} 27. Rf1 {[%clk 0:00:05]}  Bh4 {[%clk 0:00:39]} 28. Bxe3 {[%clk 0:00:04]}  dxe3 {[%clk 0:00:35]} 29. Qf3 {[%clk 0:00:01]}  Bxf3 {[%clk 0:00:34]} 30. Rxf3 {[%clk 0:00:02]}  Nd4 {[%clk 0:00:34]} 0-1


[Site "https://www.chess.com"]